[Event "Asian Zonal 3.2 Women 2019"]
[Site "Dhaka"]
[Date "2019.03.22"]
[Round "8.9"]
[White "Noshin, Anjum"]
[Black "Sultana, Sharmin Shirin"]
[Result "0-1"]
[ECO "B43"]
[WhiteElo "1722"]
[BlackElo "1981"]
[Annotator "NA RC"]
[PlyCount "110"]
[EventDate "2019.03.14"]
[EventType "swiss"]
[EventCountry "BAN"]
[SourceTitle "playchess.com"]
[Source "ChessBase"]
[SourceQuality "1"]
[TimeControl "5400+30"]

{[%evp 8,110,26,7,38,16,29,11,26,20,16,18,22,21,25,11,29,14,29,4,42,47,44,47,62,55,72,54,35,47,45,15,7,15,32767,32767,14,3,17,11,21,15,23,8,9,10,9,0,0,0,0,0,0,-22,-22,-9,-4,-21,-10,-25,7,-145,-140,-262,-316,-391,-212,-237,-188,-239,-184,-194,-216,-218,-197,-286,-235,-259,-311,-391,-293,-319,-193,-201,-210,-233,-141,-233,-210,-245,-275,-558,-499,-500,-581,-552,-608,-600,-723,-5114,-6075,-29946,-29962,-29984,-29986]} 1. e4 {[%emt 0:00:00]} c5 {[%emt 0:00:00]} 2. Nf3 {[%emt 0:00:00]} e6 {[%emt 0:00:00]} 3. d4 {[%emt 0:00:02]} cxd4 {[%emt 0:00:00]} 4. Nxd4 {[%emt 0:00:10]} a6 {[%emt 0:00:03]} 5. Nc3 {[%emt 0:00:06]} Qc7 {[%emt 0:00:07]} 6. Bd3 {[%emt 0:00:07]} Nf6 {[%emt 0:02:48]} 7. O-O {[%emt 0:00:09]} Nc6 {[%emt 0:00:29]} 8. Nxc6 {[%emt 0:00:19]} dxc6 {[%emt 0:02:01]} 9. f4 {[%emt 0:00:11]} Bc5+ {[%emt 0:02:30]} 10. Kh1 {[%emt 0:00:26]} e5 {[%emt 0:00:02]} 11. f5 {[%emt 0:10:12]} h5 {[%emt 0:06:22] B43: Sicilian: Kan Variation: 5 Nc3} (11... b5 12. a4 b4 13. Nb1 h5 14. Bg5 Be7 15. Be3 c5 16. Nd2 Bb7 17. Rf3 Ng4 18. Bg1 Bg5 19. Nc4 {1-0 (46) Pinkovetsky,S (2639)-Elwert,H (2724) ICCF email 2006}) 12. Be2 {[%emt 0:08:36]} Bd7 {[%emt 0:04:33]} 13. Qd3 $146 {[%emt 0:05:27]} ({Predecessor:} 13. Bg5 O-O-O 14. Qe1 Rdg8 15. Bxf6 gxf6 16. Na4 Bd4 17. c3 Qa5 18. Qd1 Ba7 19. b4 {½-½ (54) Quinones Mena,J (2056)-Arancibia Guzman,E (2358) Santiago de Chile 2007}) 13... Bd4 {[%emt 0:12:30]} 14. Qg3 {[%emt 0:10:13]} Rh7 {[%emt 0:21:25]} 15. Bg5 {[%emt 0:20:04]} O-O-O {[%emt 0:00:08]} 16. Qh4 {[%emt 0:06:36]} Rg8 {[%emt 0:16:08]} 17. Bxf6 {[%emt 0:23:58]} gxf6 {[%emt 0:00:07]} 18. Qxf6 {[%emt 0:01:04]} h4 {[%emt 0:12:32]} 19. Qe7 {[%emt 0:03:12]} Be8 {[%emt 0:03:48]} 20. Qxc7+ {[%emt 0:01:18]} Kxc7 {[%emt 0:00:02]} 21. Rad1 {[%emt 0:00:55]} Rhg7 {[%emt 0:00:33]} 22. Bf3 {[%emt 0:00:12]} f6 {[%emt 0:00:10]} 23. Rd3 {[%emt 0:04:03]} Bf7 {[%emt 0:00:43]} 24. b3 {[%emt 0:00:12]} b5 {[%emt 0:03:29]} 25. Ne2 {[%emt 0:00:21]} Bc5 {[%emt 0:01:03]} 26. Rfd1 {[%emt 0:00:12]} Be8 {[%emt 0:04:24]} 27. c3 {[%emt 0:00:29]} a5 {[%emt 0:00:40]} 28. Rd8 {[%emt 0:01:13]} Kb7 {[%emt 0:02:25]} 29. R8d3 {[%emt 0:02:45]} Kc7 {[%emt 0:01:51]} 30. a4 {[%emt 0:00:48]} bxa4 {[%emt 0:01:13]} 31. bxa4 {[%emt 0:00:05]} Rd7 {[%emt 0:01:18]} 32. Rxd7+ {[%emt 0:00:41]} Bxd7 {[%emt 0:00:01]} 33. Rb1 {[%emt 0:01:38]} Bc8 {[%emt 0:00:02]} 34. Nc1 {[%emt 0:00:31]} (34. g3 $1 $11 {remains equal.}) 34... Ba6 {[%emt 0:00:29]} 35. Nb3 {[%emt 0:00:37]} (35. h3 $17) 35... Rb8 {[%emt 0:00:30]} 36. Nd2 {[%emt 0:00:26]} Rd8 {[%emt 0:00:14]} (36... Rxb1+ $142 37. Nxb1 Bd3) 37. Nb3 {[%emt 0:00:13]} Bb6 {[%emt 0:01:20]} 38. Rd1 {[%emt 0:00:22]} Rb8 {[%emt 0:01:05]} 39. Bh5 {[%emt 0:01:03]} Bc4 {[%emt 0:00:37]} 40. Nd2 {[%emt 0:00:00]} Bd3 {[%emt 0:00:00]} 41. Bf7 {[%emt 0:00:00]} Bc2 {[%emt 0:00:00]} 42. Ra1 {[%emt 0:00:00]} Rd8 {[%emt 0:00:00]} 43. Nf3 {[%emt 0:00:00]} Bxe4 {[%emt 0:00:00]} 44. Nxh4 {[%emt 0:00:00]} Bf2 {[%emt 0:00:00]} 45. Nf3 {[%emt 0:00:00]} Bxf5 {[%emt 0:00:00]} 46. Rf1 {[%emt 0:00:00]} Bc5 {[%emt 0:00:00]} 47. h3 {[%emt 0:00:00]} (47. h4 $17) 47... Bc2 {[%emt 0:00:00]} 48. Ra1 {[%emt 0:00:00]} e4 {[%emt 0:00:37]} 49. Ne1 $2 {[%emt 0:00:00]} (49. Nd4 Bxd4 50. cxd4) 49... Bd1 {[%emt 0:00:04]} 50. Bg6 {[%emt 0:00:47]} Bf2 {[%emt 0:00:25]} 51. Bxe4 {[%emt 0:01:51]} Bxe1 {[%emt 0:00:03]} 52. Bf3 {[%emt 0:00:19]} Bxf3 {[%emt 0:00:12]} 53. Rxe1 {[%emt 0:00:04]} Rd1 {[%emt 0:01:06]} 54. Rxd1 {[%emt 0:00:06]} Bxd1 {[%emt 0:00:01]} 55. g4 {[%emt 0:00:28]} Bxa4 {[%emt 0:00:14]} 0-1

[Event "Asian Zonal 3.2 Women 2019"]
[Site "Dhaka"]
[Date "2019.03.22"]
[Round "8.10"]
[White "Parveen, Seyda Shabana"]
[Black "Jannatul, Ferdous"]
[Result "1-0"]
[ECO "E17"]
[WhiteElo "2073"]
[BlackElo "1704"]
[Annotator "NA RC"]
[PlyCount "159"]
[EventDate "2019.03.14"]
[EventType "swiss"]
[EventCountry "BAN"]
[SourceTitle "playchess.com"]
[Source "ChessBase"]
[SourceQuality "1"]
[TimeControl "5400+30"]

{[%evp 8,157,14,0,8,4,6,4,-2,0,7,7,9,-1,0,0,3,-15,0,-32,-7,-33,31,32767,32767,32767,32,25,19,13,15,19,37,24,94,-10,14,-2,0,-4,-9,-37,81,86,84,39,50,25,130,126,136,85,74,78,83,75,72,84,127,97,127,124,200,238,522,566,519,182,188,144,136,135,140,138,125,130,141,139,124,142,143,149,135,164,123,136,133,97,149,8,143,0,139,132,138,81,64,0,141,171,111,0,133,137,157,135,129,650,693,5061,786,2248,3466,5383,5097,29950,29961,29959,6107,0,29965,29965,29969,0,5529,29967,29971,12789,29958,29976,29981,29982,29984,29980,11091,29977,29973,29979,29979,29979,29980,232,29968,29978,29983,29984,29988,29989,29992,29993,29993,29992]} 1. d4 {[%emt 0:04:19]} Nf6 {[%emt 0:00:00]} 2. Nf3 {[%emt 0:00:13]} e6 {[%emt 0:00:00]} 3. g3 {[%emt 0:00:09]} b6 {[%emt 0:00:04]} 4. Bg2 {[%emt 0:00:13]} Bb7 {[%emt 0:00:02]} 5. O-O {[%emt 0:00:28]} Be7 {[%emt 0:00:06]} 6. b3 {[%emt 0:00:33]} O-O {[%emt 0:00:17]} 7. Bb2 {[%emt 0:00:21]} d5 {[%emt 0:00:44]} 8. Nbd2 {[%emt 0:00:40]} Nbd7 {[%emt 0:04:44]} 9. c4 {[%emt 0:01:51]} c5 {[%emt 0:00:40]} 10. e3 {[%emt 0:01:08]} Rc8 {[%emt 0:00:53]} 11. Ne5 {[%emt 0:04:15] E17: Queen's Indian: 4 g3 Bb7 5 Bg2 Be7} (11. Qe2 dxc4 12. Nxc4 {½-½ (12) Gupta,A (2619)-Mchedlishvili,M (2621) Tashkent 2014}) 11... Qc7 {[%emt 0:05:51]} 12. Rc1 {[%emt 0:02:57]} dxc4 {[%emt 0:03:33]} 13. Ndxc4 {[%emt 0:10:03]} Bxg2 {[%emt 0:00:51]} 14. Kxg2 {[%emt 0:00:20]} Qb7+ {[%emt 0:00:37]} ({Better is} 14... b5 $11 15. Nd2 Rfd8) 15. Qf3 {[%emt 0:00:25]} Qxf3+ {[%emt 0:01:24]} 16. Nxf3 {[%emt 0:00:04]} cxd4 {[%emt 0:08:42]} 17. Nxd4 $146 {[%emt 0:00:35]} ({Predecessor:} 17. exd4) 17... a6 {[%emt 0:03:51]} 18. Rfd1 {[%emt 0:03:12]} Rfd8 {[%emt 0:00:21]} 19. f3 {[%emt 0:06:32]} Nd5 {[%emt 0:06:58]} 20. e4 {[%emt 0:16:33]} Nb4 {[%emt 0:03:41]} (20... Rxc4 $11 21. exd5 Rxc1 22. Rxc1 Bf6) 21. Ba3 {[%emt 0:11:14]} ({White should try} 21. a3 $16 b5 22. Ne3 (22. axb4 bxc4 23. b5 axb5 $11) 22... Rxc1 23. Bxc1) 21... Bc5 {[%emt 0:12:04]} 22. Bxb4 {[%emt 0:02:39]} Bxb4 {[%emt 0:01:03]} 23. Nc2 {[%emt 0:02:39]} Be7 {[%emt 0:04:11]} 24. e5 {[%emt 0:05:19]} Nc5 {[%emt 0:02:44]} (24... b5 $15 {stays ahead.} 25. Nd6 Bxd6 26. exd6 Nb6) 25. Nxb6 {[%emt 0:02:26]} Rb8 {[%emt 0:00:29]} 26. Nc4 {[%emt 0:01:07]} Nd3 {[%emt 0:01:41]} 27. Rb1 {[%emt 0:00:28]} f6 {[%emt 0:04:29]} (27... g5 $14) 28. exf6 {[%emt 0:02:43]} gxf6 {[%emt 0:00:17]} 29. Ne1 {[%emt 0:00:47]} (29. Kf1 $142) 29... Nb4 {[%emt 0:01:26]} 30. a3 {[%emt 0:04:53]} Nd5 {[%emt 0:00:26]} 31. Rd3 {[%emt 0:00:29]} Rdc8 {[%emt 0:04:32]} 32. Rbd1 {[%emt 0:01:23]} Kf7 {[%emt 0:05:18]} 33. f4 {[%emt 0:00:20]} Rc7 {[%emt 0:02:20] [#]} 34. f5 $1 {[%emt 0:01:31]} Rd7 {[%emt 0:05:22]} (34... Nb6 $16) 35. Kf3 {[%emt 0:03:19]} Rbd8 $2 {[%emt 0:03:02]} (35... Rbb7 36. Ng2 Nb6 37. fxe6+ Kxe6 38. Nxb6 Rxd3+ 39. Rxd3 Rxb6) 36. fxe6+ {[%emt 0:00:35]} Kxe6 {[%emt 0:00:06]} 37. Nc2 $2 {[%emt 0:00:34]} (37. Ng2) 37... Kf7 {[%emt 0:06:03]} 38. N2e3 {[%emt 0:01:04]} Nxe3 {[%emt 0:02:28]} 39. Kxe3 {[%emt 0:01:28]} Bc5+ {[%emt 0:01:20]} 40. Ke2 {[%emt 0:00:00]} Rxd3 {[%emt 0:00:00]} 41. Rxd3 {[%emt 0:00:00]} Rxd3 {[%emt 0:00:00]} 42. Kxd3 {[%emt 0:00:00]} Ke6 {[%emt 0:00:00]} 43. b4 {[%emt 0:00:00]} Bg1 {[%emt 0:00:00]} 44. h3 {[%emt 0:00:00]} f5 {[%emt 0:00:00]} 45. g4 {[%emt 0:00:00]} fxg4 {[%emt 0:00:00]} 46. hxg4 {[%emt 0:00:00]} Kd5 {[%emt 0:00:00]} 47. a4 {[%emt 0:00:00]} Ba7 {[%emt 0:00:00]} ({Better is} 47... Bf2) 48. Na5 {[%emt 0:02:08]} Bb6 {[%emt 0:00:00] [#]} (48... Bf2 $11 {keeps the balance.}) 49. Nc4 {[%emt 0:01:04]} (49. Nb3 $1 $16) 49... Ba7 $1 {[%emt 0:00:00]} 50. Nd2 {[%emt 0:03:08]} h6 $1 $11 {[%emt 0:02:00]} 51. Nf3 {[%emt 0:01:04]} Bb6 {[%emt 0:00:24]} 52. Nd2 {[%emt 0:03:22]} ({Better is} 52. Ne1 $16) 52... Bg1 {[%emt 0:02:22]} 53. Nc4 {[%emt 0:03:35]} Ba7 {[%emt 0:01:40]} 54. Nd2 $2 {[%emt 0:00:50]} (54. a5 $18) 54... Bg1 {[%emt 0:00:53]} 55. Ne4 {[%emt 0:00:18]} Bd4 {[%emt 0:02:59]} 56. Ng3 {[%emt 0:00:24]} Ba7 {[%emt 0:00:47]} 57. Nf5 {[%emt 0:00:21]} Ke5 {[%emt 0:00:24]} 58. Nxh6 {[%emt 0:00:24]} Kf4 {[%emt 0:00:05]} 59. Kc4 {[%emt 0:00:53]} Kg5 {[%emt 0:00:29]} 60. Nf7+ {[%emt 0:00:09]} Kxg4 {[%emt 0:00:13]} 61. Nd6 {[%emt 0:01:16]} Kf4 {[%emt 0:01:17]} 62. Kd5 {[%emt 0:00:28]} Ke3 {[%emt 0:01:15]} 63. Kc4 $2 {[%emt 0:00:41]} (63. a5 {mates} Kd3 64. Ne4 Be3 65. b5 Bf4 66. Nc5+ Ke3 67. bxa6 Bb8 68. Nd7) 63... Kf4 $1 $11 {[%emt 0:00:43]} 64. Nc8 {[%emt 0:00:30]} (64. Nb7 Ke5) 64... Bf2 {[%emt 0:01:10]} 65. Nd6 $2 {[%emt 0:00:45]} (65. a5 {mates} Be1 66. b5 axb5+ 67. Kxb5 Bxa5 68. Kxa5) 65... Ke5 $2 {[%emt 0:00:42] [#]} 66. Nb7 $1 {[%emt 0:00:03]} Bb6 {[%emt 0:02:10]} 67. Nc5 {[%emt 0:00:30]} Kd6 {[%emt 0:00:19]} 68. Nxa6 {[%emt 0:00:09]} Kc6 {[%emt 0:00:05]} 69. Nc5 {[%emt 0:00:40]} Bd8 {[%emt 0:00:50]} 70. Ne6 {[%emt 0:00:10]} Bh4 {[%emt 0:00:19]} 71. Nd4+ {[%emt 0:00:25]} Kb6 {[%emt 0:00:23]} 72. Nb3 {[%emt 0:00:04]} Bd8 {[%emt 0:00:35]} 73. a5+ {[%emt 0:00:08]} Ka6 {[%emt 0:00:24]} 74. Nc5+ $2 {[%emt 0:00:09]} (74. b5+ {mates} Kb7 75. Kd5 Bc7 76. Nc5+ Ka7 77. a6 Kb6 78. Nd7+ Ka7 79. Kc6) 74... Ka7 {[%emt 0:00:06]} 75. Kb5 {[%emt 0:00:15]} Bc7 {[%emt 0:00:32]} 76. Kc6 {[%emt 0:00:35]} Bh2 {[%emt 0:00:19]} 77. b5 {[%emt 0:00:21]} Bg3 {[%emt 0:00:25]} 78. b6+ {[%emt 0:00:23]} Ka8 {[%emt 0:00:24]} 79. Na6 {[%emt 0:01:32]} Bf2 {[%emt 0:01:23]} 80. b7+ {[%emt 0:00:29]} 1-0

[Event "Asian Zonal 3.2 Women 2019"]
[Site "Dhaka"]
[Date "2019.03.22"]
[Round "8.11"]
[White "Hamid, Rani"]
[Black "Khan, Nazrana"]
[Result "1-0"]
[ECO "B43"]
[WhiteElo "1941"]
[BlackElo "1948"]
[Annotator "NA RC"]
[PlyCount "79"]
[EventDate "2019.03.14"]
[EventType "swiss"]
[EventCountry "BAN"]
[SourceTitle "playchess.com"]
[Source "ChessBase"]
[SourceQuality "1"]
[TimeControl "5400+30"]

{[%evp 8,79,32,24,9,16,27,14,31,47,47,47,53,35,41,14,33,41,92,100,77,78,65,50,129,132,130,116,101,111,126,58,152,81,95,56,91,102,164,87,135,56,61,62,67,40,40,49,50,48,43,43,56,55,45,45,62,78,65,66,63,4,0,0,6,0,0,-29,2,0,0,0,29998,29999]} 1. e4 {[%emt 0:00:13]} c5 {[%emt 0:00:00]} 2. Nf3 {[%emt 0:00:10]} e6 {[%emt 0:00:00]} 3. d4 {[%emt 0:00:04]} cxd4 {[%emt 0:00:00]} 4. Nxd4 {[%emt 0:00:03]} a6 {[%emt 0:00:00]} 5. Be2 {[%emt 0:01:24]} Nf6 {[%emt 0:00:44]} 6. Nc3 {[%emt 0:00:07]} Qc7 {[%emt 0:00:45]} 7. O-O {[%emt 0:00:13]} Bb4 {[%emt 0:02:21]} 8. Qd3 {[%emt 0:02:36]} Nc6 {[%emt 0:03:15]} 9. Nxc6 {[%emt 0:00:16]} dxc6 {[%emt 0:00:47]} 10. f4 {[%emt 0:01:53] B43: Sicilian: Kan Variation: 5 Nc3} b5 {[%emt 0:07:25]} 11. Qg3 $146 {[%emt 0:03:21]} ({Predecessor:} 11. e5 Nd5 12. Ne4 Be7 13. b3 c5 14. Nd6+ Bxd6 15. exd6 Qb6 16. c4 bxc4 17. bxc4 Nb4 18. Rb1 Qa7 19. Qc3 f6 20. Bh5+ Kf8 21. Qh3 f5 22. Bf3 Rb8 23. a3 {1-0 (23) Oral,T (2535)-Weiss,C (2420) Germany 2008}) 11... O-O {[%emt 0:08:28]} 12. e5 {[%emt 0:03:43]} Ne8 {[%emt 0:03:59]} (12... Nd5 $11 {keeps the balance.}) 13. Be3 {[%emt 0:03:33]} Be7 {[%emt 0:02:54]} 14. Ne4 {[%emt 0:04:15]} c5 {[%emt 0:02:06]} 15. Qf2 {[%emt 0:02:53]} c4 {[%emt 0:06:20]} ({Better is} 15... f6 $14) 16. Bb6 {[%emt 0:02:52]} Qb8 {[%emt 0:03:02]} 17. Bf3 {[%emt 0:00:52]} Bb7 {[%emt 0:06:33]} 18. Rad1 {[%emt 0:04:39]} Bd5 {[%emt 0:03:52]} 19. Bd4 {[%emt 0:02:13]} Nc7 {[%emt 0:06:39] [#]} (19... Qb7 $14 20. Qe3 Qc6) 20. Qg3 {[%emt 0:02:46]} (20. Nf6+ $1 $18 {[%mdl 512]} Bxf6 (20... gxf6 21. Qg3+) 21. exf6) 20... Kh8 {[%emt 0:16:55]} 21. h4 {[%emt 0:03:59]} Ne8 {[%emt 0:04:40]} 22. h5 {[%emt 0:02:07]} h6 {[%emt 0:00:56] [#]} (22... Qc7 $16 {was called for.}) 23. c3 {[%emt 0:02:14]} (23. f5 $142 $1) 23... Qd8 {[%emt 0:03:38]} ({Better is} 23... Qb7 $14 24. Nd6 Bxd6 25. exd6 f6) 24. Qh3 {[%emt 0:03:24]} ({White should play} 24. Be3 $18) 24... f5 {[%emt 0:03:02]} 25. exf6 {[%emt 0:06:10]} Nxf6 {[%emt 0:02:20]} 26. Nxf6 {[%emt 0:00:16]} Bxf6 {[%emt 0:00:53]} 27. Bxd5 {[%emt 0:00:08]} exd5 {[%emt 0:00:32]} 28. Qf3 {[%emt 0:04:03]} Bxd4+ {[%emt 0:03:37]} 29. Rxd4 {[%emt 0:00:11]} Qb6 {[%emt 0:04:00]} 30. Re1 {[%emt 0:02:55]} Rad8 {[%emt 0:01:55]} 31. Re5 {[%emt 0:02:10]} b4 {[%emt 0:01:06]} 32. Kh2 {[%emt 0:02:38]} bxc3 {[%emt 0:01:03]} 33. bxc3 {[%emt 0:00:02]} Qb2 {[%emt 0:01:46]} 34. Re7 {[%emt 0:01:14]} (34. Re6 $16) 34... Qxa2 {[%emt 0:00:43]} 35. Qg4 {[%emt 0:03:51]} Rg8 {[%emt 0:00:13]} 36. Qh4 {[%emt 0:04:06]} Qa5 {[%emt 0:00:34]} (36... Qc2 $5 {[%cal Rc2c3]} 37. Qe1 a5 $15) 37. f5 {[%emt 0:01:00]} Rdf8 {[%emt 0:00:26]} (37... Qxc3 38. f6 $18) 38. Qf4 {[%emt 0:05:59]} Qxc3 {[%emt 0:00:30]} 39. Re6 {[%emt 0:00:14]} Qxd4 $4 {[%emt 0:00:46] [#]} (39... Rf7 $11) 40. Rxh6+ {[%emt 0:25:13] Demolition} 1-0

[Event "Asian Zonal 3.2 Women 2019"]
[Site "Dhaka"]
[Date "2019.03.22"]
[Round "8.12"]
[White "Parveen, Tanima"]
[Black "Ahmed, Walijah"]
[Result "1-0"]
[ECO "B22"]
[WhiteElo "1990"]
[BlackElo "1691"]
[Annotator "NA RC"]
[PlyCount "79"]
[EventDate "2019.03.14"]
[EventType "swiss"]
[EventCountry "BAN"]
[SourceTitle "playchess.com"]
[Source "ChessBase"]
[SourceQuality "1"]
[TimeControl "5400+30"]

{[%evp 8,79,8,0,22,-27,58,31,43,10,26,16,0,16,31,27,45,-4,32767,0,23,17,35,13,172,144,154,86,179,246,196,272,270,281,264,164,354,469,394,243,262,87,100,85,69,74,86,76,71,62,106,113,160,131,128,186,146,183,206,190,209,171,189,179,194,0,202,147,171,0,829,1064,985,829]} 1. e4 {[%emt 0:00:00]} c5 {[%emt 0:00:00]} 2. c3 {[%emt 0:00:00]} Nf6 {[%emt 0:00:00]} 3. e5 {[%emt 0:00:02]} Nd5 {[%emt 0:00:00]} 4. d4 {[%emt 0:00:07]} cxd4 {[%emt 0:00:00]} 5. Nf3 {[%emt 0:00:13]} e6 {[%emt 0:00:00]} 6. Nxd4 {[%emt 0:01:13]} b6 {[%emt 0:00:39] B22: Sicilian: 2 c3} (6... Qc7 $11) (6... d6 7. exd6 Bxd6 8. Nd2 O-O 9. Nc4 Be7 10. Be2 a6 11. a4 Qc7 12. O-O b6 13. a5 Nd7 14. axb6 N7xb6 {0-1 (32) Baterdene,T (2318)-Agibileg,U (2302) Harbin 2018}) 7. Be2 $146 {[%emt 0:02:12]} ({Predecessor:} 7. Nd2 Bb7 8. N2f3 Na6 9. Bd3 Nc5 10. Bb1 d6 11. O-O dxe5 12. Nxe5 Qf6 13. f4 Bd6 14. Ng4 Qh4 15. g3 Qh3 16. Nf2 Nxf4 {0-1 (16) Stevens,D-Ramsden,J (2045) ICCF email 2015}) 7... Bb7 {[%emt 0:03:43]} 8. O-O {[%emt 0:02:09]} Nc6 {[%emt 0:03:02]} 9. Nxc6 {[%emt 0:03:48]} Bxc6 {[%emt 0:03:50]} 10. Bf3 {[%emt 0:04:09]} Qc7 {[%emt 0:04:35]} 11. Re1 {[%emt 0:02:24]} Be7 {[%emt 0:03:13]} 12. a3 {[%emt 0:05:27]} b5 {[%emt 0:04:49]} 13. Nd2 {[%emt 0:07:51]} d6 {[%emt 0:04:59]} 14. c4 {[%emt 0:07:16]} bxc4 {[%emt 0:01:59]} 15. Nxc4 {[%emt 0:00:18]} dxe5 $2 {[%emt 0:00:37]} (15... O-O $11 {and Black has nothing to worry.}) 16. Nxe5 {[%emt 0:00:23]} Rd8 {[%emt 0:10:02] [#]} 17. Qc2 {[%emt 0:05:14]} (17. Bd2 $1 $18 Bb5 18. Rc1) 17... Ba8 {[%emt 0:08:31] [#]} (17... Rc8 $16) 18. Qa4+ $1 {[%emt 0:07:17]} Kf8 {[%emt 0:00:19]} 19. Bd2 {[%emt 0:03:11]} Nb6 {[%emt 0:05:05]} 20. Qf4 {[%emt 0:01:11]} Bd6 {[%emt 0:00:41]} 21. Rac1 {[%emt 0:04:03]} Bxe5 $2 {[%emt 0:05:47]} (21... Qe7 {might work better.}) 22. Rxe5 {[%emt 0:02:52]} ({Weaker is} 22. Rxc7 Bxf4 23. Bxf4 Bxf3 $11) 22... Qd7 {[%emt 0:03:25]} 23. Bb4+ {[%emt 0:03:56]} Kg8 {[%emt 0:00:08] [#]} 24. Bxa8 {[%emt 0:01:10]} (24. Rec5 $1 $18 {[%cal Rc5c7] has better winning chances.} Bxf3 25. Rc7 (25. gxf3 Nd5 $11) 25... Qd1+ 26. Be1) 24... Rxa8 {[%emt 0:01:35]} 25. Rec5 {[%emt 0:02:24]} Nd5 {[%emt 0:03:52]} 26. Qd2 {[%emt 0:00:54]} Qb7 {[%emt 0:03:09]} 27. Qc2 {[%emt 0:03:35]} h6 {[%emt 0:02:42]} 28. Bd2 {[%emt 0:02:05]} h5 {[%emt 0:05:57]} 29. b4 {[%emt 0:03:17]} g6 {[%emt 0:02:04]} (29... Rd8 $142) 30. Qe4 {[%emt 0:02:42]} Qd7 {[%emt 0:02:24] [#]} 31. Bc3 $1 {[%emt 0:00:42]} Rh7 {[%emt 0:01:52]} 32. Bb2 {[%emt 0:01:35]} Rd8 {[%emt 0:02:02] [#]} 33. h3 $1 {[%emt 0:01:32]} Qe8 {[%emt 0:01:41]} 34. Re1 {[%emt 0:03:52]} Kf8 $1 $11 {[%emt 0:01:29]} 35. Bd4 {[%emt 0:01:16]} Qd7 {[%emt 0:03:50]} 36. Bb2 $2 {[%emt 0:05:15]} ({White should try} 36. b5 $18) 36... h4 $2 $11 {[%emt 0:01:18]} 37. Qe5 {[%emt 0:03:42]} Qd6 {[%emt 0:01:22]} 38. Qe4 $2 {[%emt 0:02:58]} ({White should play} 38. Qd4 $18) 38... Qf4 $2 {[%emt 0:03:31] [#]} 39. Rxd5 $18 {[%emt 0:00:58]} Qxe4 {[%emt 0:02:37]} 40. Rxd8+ {[%emt 0:00:00]} 1-0

[Event "Asian Zonal 3.2 Women 2019"]
[Site "Dhaka"]
[Date "2019.03.23"]
[Round "9.9"]
[White "Sultana, Sharmin Shirin"]
[Black "Hamid, Rani"]
[Result "1-0"]
[ECO "E32"]
[WhiteElo "1981"]
[BlackElo "1941"]
[Annotator "NA RC"]
[PlyCount "79"]
[EventDate "2019.03.14"]
[EventType "swiss"]
[EventCountry "BAN"]
[SourceTitle "playchess.com"]
[Source "ChessBase"]
[SourceQuality "1"]
[TimeControl "5400+30"]

{[%evp 8,79,6,7,95,-4,32767,32767,32767,32767,32767,32767,32767,14,10,18,12,18,35,29,126,111,161,142,189,197,247,122,139,100,145,129,183,125,187,119,177,225,181,217,289,320,377,415,477,496,562,345,301,320,302,281,368,360,376,382,884,944,1360,1480,29995,2055,1635,1947,1561,1008,1150,1206,1254,1189,1863,1193,1194,1274]} 1. d4 {[%emt 0:00:00]} Nf6 {[%emt 0:00:00]} 2. c4 {[%emt 0:00:00]} e6 {[%emt 0:00:00]} 3. Nc3 {[%emt 0:00:06]} Bb4 {[%emt 0:00:00]} 4. Qc2 {[%emt 0:00:09]} O-O {[%emt 0:00:53]} 5. Nf3 {[%emt 0:00:25]} b6 {[%emt 0:01:10] LiveBook: 206 Games [#]} (5... c5 $11) 6. g3 {[%emt 0:11:46]} (6. e4 $1 $16) 6... Bb7 {[%emt 0:02:33]} 7. Bg2 {[%emt 0:00:03]} d6 {[%emt 0:00:59]} 8. O-O {[%emt 0:00:26]} Bxc3 {[%emt 0:00:14]} 9. Qxc3 {[%emt 0:00:15]} Nbd7 {[%emt 0:00:19]} 10. b3 {[%emt 0:02:43]} Qe7 {[%emt 0:03:02]} 11. Bb2 {[%emt 0:01:31]} Rfe8 {[%emt 0:05:04]} 12. Rad1 {[%emt 0:06:57] E32: Nimzo-Indian: Classical (4 Qc2): 4...0-0} c5 {[%emt 0:04:52]} (12... Qf8 13. Rfe1 Rac8 14. Qc2 Be4 15. Qc1 Qe7 16. Bh3 Bb7 17. Qc2 c5 {½-½ (17) Harika,D (2509)-Ghaem Maghami,E (2609) Al Ain 2015}) 13. Rfe1 {[%emt 0:08:55]} Rad8 $146 {[%emt 0:04:21] [#]} (13... d5 $14) ({Predecessor:} 13... e5 14. dxe5 dxe5 15. Nh4 Bxg2 16. Nxg2 Rad8 17. Ne3 Qe6 18. Rd3 Ne4 19. Qc2 Ndf6 {1-0 (56) Ater,G (2380)-Saiz Rodrigo,J Hospitalet 1994}) 14. d5 $1 {[%emt 0:13:52]} exd5 {[%emt 0:01:52]} (14... Nf8 $16 {is a better defense.}) 15. cxd5 {[%emt 0:00:01]} Qf8 {[%emt 0:00:59] [#]} (15... Ne5 $16 {is a better defense.}) 16. Nh4 $1 {[%emt 0:01:08]} Ne5 {[%emt 0:02:37]} (16... Ng4 {is a better defense.} 17. e4 Nh6) 17. Qc2 {[%emt 0:05:27]} (17. f4 $18) 17... Bc8 {[%emt 0:01:14]} 18. Nf5 {[%emt 0:04:26]} Bxf5 {[%emt 0:04:55]} (18... b5 $142) 19. Qxf5 {[%emt 0:00:05]} b5 {[%emt 0:00:37]} 20. Qc2 {[%emt 0:05:15]} Re7 {[%emt 0:03:11] [#]} 21. e4 {[%emt 0:01:59]} (21. f4 $1 $18 {[%cal Rf4e5]} Ned7 22. e4) 21... Nfd7 {[%emt 0:06:43]} (21... c4 $16) 22. f4 {[%emt 0:00:59]} Ng6 {[%emt 0:01:08]} 23. e5 {[%emt 0:03:36]} Qe8 {[%emt 0:02:27] [#]} 24. e6 $1 {[%emt 0:08:20]} fxe6 {[%emt 0:01:25]} 25. dxe6 {[%emt 0:00:02]} Nb6 {[%emt 0:00:44]} 26. f5 {[%emt 0:00:08]} Nf8 {[%emt 0:02:43]} 27. f6 {[%emt 0:06:48]} Rxe6 {[%emt 0:00:47]} 28. Qf2 {[%emt 0:03:02]} gxf6 {[%emt 0:09:32]} 29. Bxf6 {[%emt 0:00:19]} Rb8 {[%emt 0:00:46]} 30. Bh3 {[%emt 0:01:42]} Rxe1+ {[%emt 0:02:43]} 31. Rxe1 {[%emt 0:00:01]} ({Not} 31. Qxe1 Qxe1+ 32. Rxe1 Kf7 $11) 31... Qh5 $2 {[%emt 0:00:32] [#]} (31... Qg6 32. Re7 Re8) 32. Re7 $1 {[%emt 0:01:25]} Qd1+ {[%emt 0:01:58]} 33. Bf1 {[%emt 0:00:53]} Qg4 {[%emt 0:06:41]} 34. Bb2 {[%emt 0:03:31]} (34. Ba1 $142 Qe6 35. Rg7+ Kh8 36. Rg6+ {[%mdl 64] Discovered Attack} Qe5 37. Qf6+ Qxf6 38. Bxf6#) 34... Qg6 {[%emt 0:02:13] [#]} 35. Bd3 $1 {[%emt 0:00:27]} Re8 {[%emt 0:02:55]} 36. Bxg6 {[%emt 0:00:10]} Rxe7 {[%emt 0:00:02]} 37. Bh5 {[%emt 0:05:13]} Nbd7 {[%emt 0:01:01]} 38. Qf4 {[%emt 0:01:58]} Ne5 {[%emt 0:00:36]} 39. Bxe5 {[%emt 0:00:25]} dxe5 {[%emt 0:00:07]} 40. Qg5+ $18 {[%emt 0:00:00]} 1-0